bitfinex-derivatives/quotes_SOLF0:USTF0_20260315
["timestamp","ask_amount","ask_price","bid_price","bid_amount"]
[1773537939533,3.11362427,87.81,87.76,3.11362427]
[1773537939534,3.82871882,87.813,87.774,3.92980776]
[1773537939929,3.82871882,87.799,87.759,3.92980776]
[1773537953934,70.36955161,87.961,87.748,3.76583661]
[1773537953935,3.98654897,87.789,87.748,3.76583661]
[1773537960637,3.99039412,87.799,87.75,3.76583661]
[1773537960939,3.99039412,87.799,87.714,35.86]
[1773537960940,3.98913229,87.819,87.761,3.76583661]
[1773537962639,3.98913229,87.819,87.773,3.76583661]
[1773537964736,3.98913229,87.819,87.777,3.76583661]
[1773537966037,3.98913229,87.819,87.78,3.76583661]
[1773537977147,3.98913229,87.819,87.781,3.76583661]
[1773537979853,3.98913229,87.819,87.784,3.76583661]
[1773537981753,3.98913229,87.819,87.786,3.6647673]
[1773537999565,3.98913229,87.819,87.785,10.249]
[1773538003476,3.98913229,87.819,87.778,3.6647673]
[1773538016880,3.11152116,87.81,87.778,3.6647673]
[1773538017079,3.95874381,87.809,87.77,3.8017767]
[1773538045098,3.95874381,87.809,87.759,10.252]
[1773538045301,3.87745405,87.789,87.74,3.69659164]
[1773538046498,3.87745405,87.789,87.75,3.69659164]
[1773538050916,3.87745405,87.789,87.753,3.69659164]
[1773538051117,17.23766313,87.8,87.753,3.69659164]
[1773538051518,3.87745405,87.799,87.753,3.69659164]
[1773538052418,3.87745405,87.833,87.78,3.11220908]
[1773538052624,3.87745405,87.844,87.791,3.69659164]
[1773538053225,3.87745405,87.839,87.791,3.69659164]
[1773538056224,3.87745405,87.839,87.793,3.69659164]
[1773538057626,3.87745405,87.839,87.799,3.69659164]
[1773538064330,3.87745405,87.829,87.785,3.69659164]
[1773538064531,3.87745405,87.819,87.785,3.69659164]
[1773538070841,3.94053583,87.809,87.771,3.71656982]
[1773538095771,3.90119893,87.808,87.771,3.71656982]
[1773538112076,7.21015547,87.8,87.771,3.71656982]
[1773538112280,4.0979348,87.799,87.771,3.71656982]
[1773538114780,4.10086621,87.796,87.761,3.92184308]
[1773538124294,3.11222067,87.79,87.761,3.92184308]
[1773538129686,4.10086621,87.796,87.761,3.92184308]
[1773538134193,3.8591221,87.791,87.751,3.70992467]
[1773538134396,3.8591221,87.789,87.751,3.70992467]
[1773538135588,3.8591221,87.787,87.751,3.70992467]
[1773538136596,10.249,87.786,87.751,3.70992467]
[1773538138295,3.8591221,87.785,87.751,3.70992467]
[1773538139988,3.8591221,87.779,87.731,3.70992467]
[1773538140395,3.8591221,87.776,87.731,3.70992467]
[1773538140697,3.8591221,87.759,87.731,3.70992467]
[1773538148403,3.8591221,87.759,87.722,3.70992467]
[1773538153406,6.97495636,87.75,87.722,3.70992467]
[1773538154407,3.8591221,87.749,87.708,3.70992467]
[1773538177032,10.254,87.742,87.708,3.70992467]
[1773538177228,3.8591221,87.749,87.708,3.70992467]
[1773538179535,10.254,87.748,87.708,3.70992467]
[1773538182537,14.014591,87.748,87.708,3.70992467]
[1773538184028,3.760591,87.77,87.71,3.11583426]
[1773538184231,3.760591,87.779,87.721,3.7515206]
[1773538185341,3.760591,87.769,87.721,3.7515206]
[1773538185540,3.760591,87.769,87.723,3.7515206]
[1773538186737,3.760591,87.769,87.725,3.7515206]
[1773538189338,3.760591,87.787,87.735,3.7515206]
[1773538190534,3.760591,87.787,87.737,3.93731169]
[1773538191640,3.760591,87.787,87.739,4.0010925]
[1773538192442,3.64774436,87.786,87.739,4.0010925]
[1773538192644,3.11583426,87.78,87.739,4.0010925]
[1773538193144,6.76357862,87.78,87.739,4.0010925]
[1773538193846,3.64774436,87.779,87.739,4.0010925]
[1773538199951,3.64774436,87.779,87.69,28.39816048]
[1773538199952,3.64774436,87.79,87.741,4.0010925]
[1773538201547,3.64774436,87.79,87.75,10.253]
[1773538201747,3.64774436,87.79,87.751,4.0010925]
[1773538204646,6.76357862,87.79,87.751,4.0010925]
[1773538204843,3.64774436,87.779,87.742,4.0010925]
[1773538205042,3.11583426,87.76,87.711,4.0010925]
[1773538205649,3.11583426,87.76,87.723,4.0010925]
[1773538207553,3.11609955,87.76,87.725,4.0010925]
[1773538217155,3.64774436,87.759,87.725,4.0010925]
[1773538219851,3.11609955,87.75,87.713,4.0010925]
[1773538220052,6.76384391,87.75,87.713,4.0010925]
[1773538220354,3.64774436,87.749,87.713,4.0010925]
[1773538221759,3.11609955,87.75,87.713,4.0010925]
[1773538223353,3.55515024,87.759,87.713,4.0010925]
[1773538224964,3.56464833,87.756,87.713,4.0010925]
[1773538225466,3.56464833,87.739,87.704,3.806054]
[1773538227758,3.60036008,87.748,87.706,3.806054]
[1773538230766,3.60036008,87.748,87.71,3.806054]
[1773538233560,3.60036008,87.748,87.712,3.806054]
[1773538236470,3.58183588,87.759,87.714,3.806054]
[1773538237666,3.58183588,87.759,87.717,3.806054]
[1773538255277,3.11609955,87.77,87.721,3.67722996]
[1773538255477,3.62163872,87.775,87.721,3.67722996]
[1773538256284,3.62163872,87.785,87.736,3.67722996]
[1773538257584,3.62163872,87.785,87.737,3.67722996]
[1773538258983,3.11609955,87.78,87.737,3.67722996]
[1773538259284,3.62163872,87.779,87.737,3.67722996]
[1773538260185,3.62163872,87.779,87.741,3.67722996]
[1773538261784,3.62163872,87.779,87.743,3.67722996]
[1773538262387,3.62163872,87.799,87.745,3.67722996]
[1773538263590,3.62163872,87.799,87.756,3.67722996]
[1773538268401,3.62163872,87.789,87.756,3.67722996]
[1773538268699,17.48887361,87.817,87.701,3.67722996]
[1773538268700,3.62163872,87.769,87.701,3.67722996]
[1773538268901,3.11360871,87.74,87.701,3.67722996]
[1773538269204,3.62163872,87.739,87.701,3.67722996]
[1773538269601,3.62163872,87.729,87.689,13.93722996]
[1773538270305,3.11360871,87.73,87.695,3.67722996]
[1773538271808,3.11360871,87.73,87.699,3.67722996]
[1773538272008,3.11360871,87.74,87.699,3.67722996]
[1773538272906,3.62163872,87.739,87.699,3.67722996]
[1773538273610,3.62163872,87.739,87.701,10.259]
[1773538276406,3.62163872,87.739,87.701,13.93622996]
[1773538277009,3.62163872,87.739,87.702,3.67722996]
[1773538278111,3.62163872,87.739,87.691,10.26]
[1773538278309,159.399,87.808,87.686,3.67722996]
[1773538278310,3.62163872,87.729,87.686,3.67722996]
[1773538279409,3.62163872,87.729,87.689,3.67722996]
[1773538279912,3.11360871,87.73,87.689,3.67722996]
[1773538280509,3.11360871,87.73,87.693,3.67722996]
[1773538280717,3.62163872,87.739,87.693,3.67722996]
[1773538284908,3.65871825,87.719,87.676,3.98258748]
[1773538285109,3.11360871,87.71,87.676,3.98258748]
[1773538285313,3.65871825,87.709,87.676,3.98258748]
[1773538285509,3.65871825,87.709,87.656,3.98258748]
[1773538286616,3.65871825,87.709,87.66,3.98258748]
[1773538287611,3.65871825,87.709,87.663,3.98258748]
[1773538287808,3.65871825,87.689,87.644,3.98258748]
[1773538288017,3.65871825,87.719,87.661,3.98258748]
[1773538289621,3.65871825,87.719,87.67,3.98258748]
[1773538290516,3.65871825,87.719,87.674,3.98258748]
[1773538290714,3.65871825,87.742,87.691,3.98258748]
[1773538291520,3.65871825,87.742,87.698,3.98258748]
[1773538295826,3.11360871,87.74,87.698,3.98258748]
[1773538296122,6.77232696,87.74,87.698,3.98258748]
[1773538296626,3.73580371,87.739,87.698,3.98258748]
[1773538301825,3.73580371,87.739,87.688,10.261]
[1773538302024,10.254,87.746,87.688,10.261]
[1773538302025,3.73580371,87.729,87.688,10.261]
[1773538302622,3.73580371,87.729,87.683,3.83973091]
[1773538304227,3.73580371,87.742,87.695,3.83973091]
[1773538305230,3.11360871,87.77,87.711,3.83973091]
[1773538305531,6.84941242,87.77,87.711,3.83973091]
[1773538305729,3.73580371,87.769,87.711,3.83973091]
[1773538306525,3.73580371,87.769,87.717,10.257]
[1773538306725,3.73580371,87.769,87.717,14.09673091]
[1773538306925,3.73580371,87.769,87.718,3.83973091]
[1773538310529,10.251,87.772,87.717,10.257]
[1773538310530,4.00646115,87.759,87.717,10.257]
[1773538310835,4.00646115,87.749,87.709,4.2163982]
[1773538323541,4.00646115,87.749,87.711,4.00724674]
[1773538333637,4.00646115,87.749,87.702,10.259]
[1773538333638,4.00646115,87.749,87.713,4.00724674]
[1773538333843,6.93070379,87.76,87.713,4.00724674]
[1773538334347,3.81404237,87.76,87.713,4.00724674]
[1773538334547,3.81633896,87.769,87.724,4.00724674]
[1773538334753,3.81633896,87.767,87.724,4.00724674]
[1773538334939,3.81633896,87.765,87.724,4.00724674]
[1773538335143,12.70371708,87.764,87.724,4.00724674]
[1773538335346,8.897233,87.763,87.724,4.00724674]
[1773538335646,3.80648408,87.764,87.726,14.26324674]
[1773538335841,3.11666142,87.77,87.727,4.00724674]
[1773538336048,38.88,87.774,87.737,4.00724674]
[1773538336440,3.8071802,87.787,87.682,20.523]
[1773538336441,3.8071802,87.787,87.741,4.00724674]
[1773538336847,3.8071802,87.769,87.73,4.00724674]
[1773538337047,38.9,87.799,87.701,4.00724674]
[1773538337048,3.78180739,87.759,87.701,4.00724674]
[1773538337849,3.78180739,87.759,87.711,4.00724674]
[1773538339351,3.81393728,87.757,87.711,4.00724674]
[1773538339852,3.81393728,87.757,87.645,195.1907006]
[1773538339853,3.81393728,87.739,87.701,4.00724674]
[1773538344961,3.74680938,87.729,87.686,3.73349296]
[1773538346857,3.11666142,87.73,87.69,3.73349296]
[1773538347059,3.11666142,87.74,87.69,3.73349296]
[1773538348763,3.11666142,87.74,87.692,3.73349296]
[1773538348965,6.8634708,87.74,87.692,3.73349296]
[1773538349963,3.74680938,87.739,87.692,3.73349296]
[1773538354257,3.74680938,87.739,87.693,10.26]
[1773538354463,3.74680938,87.739,87.694,3.73349296]
[1773538357671,3.74680938,87.729,87.684,13.99449296]
[1773538357970,3.74680938,87.729,87.685,3.73349296]
[1773538358171,3.11666142,87.74,87.685,3.73349296]
[1773538358470,6.8634708,87.74,87.685,3.73349296]
[1773538358670,3.74680938,87.739,87.685,3.73349296]
[1773538359573,3.74680938,87.739,87.69,3.73349296]
[1773538360671,3.74680938,87.739,87.693,3.73349296]
[1773538360874,1.082982,87.739,87.693,3.73349296]
[1773538361775,3.11666142,87.73,87.682,10.261]
[1773538361969,3.11666142,87.72,87.682,10.261]
[1773538362577,3.11666142,87.72,87.68,3.73349296]
[1773538362777,1.17632546,87.719,87.68,3.73349296]
[1773538366582,1.18227795,87.709,87.669,3.73349296]
[1773538368480,1.18227795,87.709,87.671,3.73349296]
[1773538369679,1.18227795,87.709,87.672,10.262]
[1773538370986,1.18227795,87.709,87.672,14.26239444]
[1773538371686,4.73260084,87.72,87.675,3.71543013]
[1773538372181,1.62072933,87.719,87.675,3.71543013]
[1773538375081,1.67864465,87.709,87.658,3.71543013]
[1773538375676,1.67864465,87.699,87.665,13.97843013]
[1773538375880,1.67864465,87.709,87.666,3.71543013]
[1773538376082,3.11666142,87.71,87.666,3.71543013]
[1773538376578,4.7956903,87.71,87.666,3.71543013]
[1773538376777,1.67902888,87.709,87.666,3.71543013]
[1773538380684,1.6767381,87.72,87.669,3.71543013]
[1773538380883,21.18215286,87.774,87.657,192.96904368]
[1773538380884,34.2,87.729,87.671,3.71543013]
[1773538381588,1.67634942,87.728,87.677,3.71543013]
[1773538382893,1.5429462,87.725,87.677,3.71543013]
[1773538383193,3.11666142,87.72,87.677,3.71543013]
[1773538386193,1.56658001,87.719,87.677,3.71543013]
[1773538390201,34.2,87.737,87.679,3.71543013]
[1773538390404,4.68198117,87.73,87.679,3.71543013]
[1773538390696,1.56327713,87.729,87.679,3.71543013]
[1773538391004,1.56327713,87.728,87.679,3.71543013]
[1773538392597,4.67798597,87.76,87.701,3.71543013]
[1773538392901,1.55928193,87.758,87.701,3.71543013]
[1773538393099,1.56739812,87.737,87.689,3.71543013]
[1773538393398,8.63804512,87.772,87.689,3.71543013]
[1773538393399,1.56739812,87.729,87.689,3.71543013]
[1773538399194,10.63857129,87.764,87.663,35.88]
[1773538399195,1.61620231,87.754,87.701,3.71543013]
[1773538400503,1.61620231,87.754,87.701,13.97443013]
[1773538400707,1.61620231,87.754,87.702,3.71543013]
[1773538401207,1.59778081,87.739,87.702,3.71543013]
[1773538411116,10.255,87.736,87.688,3.9714083]
[1773538411317,1.97708342,87.729,87.688,3.9714083]
[1773538412620,1.97694708,87.728,87.688,3.9714083]
[1773538414421,1.89540231,87.719,87.672,3.9714083]
[1773538414624,1.89540231,87.699,87.66,3.9714083]
[1773538414825,3.11870404,87.69,87.66,3.9714083]
[1773538415620,1.88633351,87.669,87.598,3.9714083]
[1773538415824,1.88633351,87.669,87.557,49.06571229]
[1773538415825,1.88633351,87.669,87.611,3.9714083]
[1773538416022,1.86863012,87.659,87.611,3.9714083]
[1773538428236,1.86863012,87.659,87.613,3.9714083]
[1773538429535,1.86863012,87.659,87.615,3.9714083]
[1773538432935,3.11870404,87.65,87.615,3.9714083]
[1773538433428,2.09796403,87.649,87.615,3.9714083]
[1773538434439,3.11870404,87.64,87.615,3.9714083]
[1773538434840,2.09796403,87.649,87.615,3.9714083]
[1773538437240,3.11870404,87.65,87.615,3.9714083]
[1773538437534,2.12621956,87.649,87.615,3.9714083]
[1773538440837,1.96837293,87.67,87.615,3.9714083]
[1773538441042,5.08707697,87.67,87.615,3.9714083]
[1773538441240,5.08288801,87.66,87.615,3.9714083]
[1773538441439,1.96418397,87.639,87.593,3.79346622]
[1773538441642,3.11870404,87.64,87.593,3.79346622]
[1773538442640,3.11870404,87.64,87.6,3.79346622]
[1773538444449,1.96418397,87.649,87.606,3.79346622]
[1773538445542,1.96418397,87.649,87.607,10.27]
[1773538445738,1.96418397,87.649,87.608,3.79346622]
[1773538450352,3.11870404,87.63,87.595,3.79346622]
[1773538450660,1.9834425,87.639,87.595,3.79346622]
[1773538451557,1.9834425,87.639,87.598,3.79346622]
[1773538452455,1.99667364,87.654,87.601,3.79346622]
[1773538453756,1.99667364,87.654,87.611,3.79346622]
[1773538455256,3.12469251,87.65,87.611,3.79346622]
[1773538456157,3.12469251,87.65,87.614,3.79346622]
[1773538456358,34.2,87.666,87.621,3.79346622]
[1773538456554,2.00533095,87.675,87.621,3.79346622]
[1773538456754,2.00602346,87.687,87.64,3.79346622]
[1773538459860,2.00602346,87.687,87.645,3.79346622]
[1773538462752,3.12469251,87.7,87.65,3.12469251]
[1773538463056,3.12469251,87.7,87.651,3.78558175]
[1773538463462,3.12469251,87.71,87.654,3.78558175]
[1773538463656,2.3925995,87.709,87.654,3.78558175]
[1773538464660,2.35172847,87.707,87.654,3.78558175]
[1773538465665,2.35172847,87.707,87.655,3.78558175]
[1773538466163,10.257,87.716,87.662,3.78558175]
[1773538466362,2.38718317,87.715,87.662,3.78558175]
[1773538467160,3.12469251,87.71,87.662,3.78558175]
[1773538468568,3.12469251,87.72,87.664,3.78558175]
[1773538468764,5.49820481,87.72,87.664,3.78558175]
[1773538468964,2.37317984,87.717,87.664,3.78558175]
[1773538469264,2.37317984,87.709,87.664,3.78558175]
[1773538478470,10.259,87.706,87.664,3.78558175]
[1773538479871,2.35912947,87.697,87.664,3.78558175]
[1773538484273,10.63857129,87.751,87.652,10.265]
[1773538484274,2.35923284,87.689,87.652,3.78558175]
[1773538484478,3.12469251,87.68,87.652,3.78558175]
[1773538484974,2.35923284,87.689,87.652,3.78558175]
[1773538496379,10.63857129,87.731,87.652,3.78558175]
[1773538496380,10.63857129,87.73,87.66,3.12469251]
[1773538496577,2.35802175,87.719,87.661,3.80730754]
[1773538496776,2.35802175,87.719,87.618,28.37634847]
[1773538496777,2.35802175,87.729,87.671,3.80730754]
[1773538496983,2.35802175,87.728,87.671,3.80730754]
[1773538497281,3.12469251,87.71,87.671,3.80730754]
[1773538498177,2.35775054,87.719,87.671,3.80730754]
[1773538501686,2.35775054,87.719,87.673,3.80730754]
[1773538506087,2.2795854,87.679,87.627,3.80730754]
[1773538506389,3.12469251,87.67,87.627,3.80730754]
[1773538507584,3.12469251,87.67,87.629,3.80730754]
[1773538508484,3.12469251,87.67,87.631,10.267]
[1773538508689,3.12469251,87.67,87.632,3.80730754]
[1773538511195,3.12469251,87.67,87.634,3.80730754]
[1773538511594,3.12200112,87.67,87.634,3.80730754]
[1773538517897,3.12200112,87.68,87.639,3.80730754]
[1773538518099,3.12200112,87.69,87.639,3.80730754]
[1773538518602,3.12200112,87.7,87.641,3.80730754]
[1773538519099,6.9222926,87.7,87.641,3.80730754]
[1773538519499,6.9222926,87.7,87.654,10.264]
[1773538519699,6.9222926,87.7,87.655,3.80730754]
[1773538520898,3.80029148,87.699,87.655,3.80730754]
[1773538530700,3.12200112,87.71,87.658,3.82087109]
[1773538530901,278.32607414,87.722,87.67,3.12200112]
[1773538531603,14.03083806,87.725,87.681,10.261]
[1773538535609,14.00538241,87.719,87.67,10.263]
[1773538536504,14.00538241,87.719,87.678,10.262]
[1773538537607,3.12200112,87.73,87.683,10.261]
[1773538537807,13.99677273,87.733,87.683,10.261]
[1773538538414,13.99650526,87.729,87.683,10.261]
[1773538539519,13.99650526,87.729,87.674,10.262]
[1773538539718,3.12200112,87.73,87.68,3.12200112]
[1773538540110,13.9146514,87.73,87.683,10.261]
[1773538542110,13.79740125,87.728,87.66,3.12200112]
[1773538542316,13.79740125,87.719,87.66,3.12200112]
[1773538543612,13.79739861,87.717,87.663,10.263]
[1773538544715,13.79701584,87.709,87.64,3.12200112]
[1773538544908,13.79701584,87.709,87.63,3.12200112]
[1773538544909,13.79701584,87.689,87.63,3.12200112]
[1773538545917,13.79701584,87.689,87.632,10.267]
[1773538546518,10.261,87.688,87.632,10.267]
[1773538546822,13.81573635,87.687,87.632,10.267]
[1773538550524,13.83277748,87.685,87.632,10.267]
[1773538551419,10.261,87.683,87.63,3.12200112]
[1773538551625,13.8283849,87.679,87.63,3.12200112]
[1773538552618,13.8283849,87.679,87.622,10.268]
[1773538554825,13.8283849,87.679,87.633,10.267]
[1773538557225,13.8283849,87.679,87.642,10.266]
[1773538559324,13.82065214,87.692,87.642,10.266]
[1773538561323,13.82283897,87.689,87.642,10.266]
[1773538561928,13.82283897,87.689,87.633,10.267]
[1773538562130,13.83121386,87.679,87.601,35.88]
[1773538562334,13.83121386,87.679,87.62,3.12200112]
[1773538562930,13.83121386,87.679,87.63,3.12200112]
[1773538564632,13.83121386,87.679,87.632,10.267]
[1773538566935,13.83121386,87.679,87.641,10.266]
[1773538567236,13.83767855,87.699,87.641,10.266]
[1773538568337,13.83767855,87.699,87.651,10.265]
[1773538574247,13.97472714,87.697,87.642,10.266]
[1773538574451,13.97472714,87.689,87.642,10.266]
[1773538580548,3.12024458,87.69,87.63,3.12024458]
[1773538580549,13.96294124,87.684,87.63,3.12024458]
[1773538581142,13.96294124,87.684,87.632,10.267]
[1773538588460,13.96294124,87.684,87.639,10.266]
[1773538591468,13.97464232,87.669,87.63,10.267]
[1773538600567,13.97464232,87.669,87.622,10.268]
[1773538614678,13.97464232,87.669,87.63,3.12024458]
[1773538614977,3.12024458,87.73,87.66,3.12024458]
[1773538615279,3.12024458,87.71,87.65,3.12024458]
[1773538616375,3.12024458,87.7,87.65,3.12024458]
[1773538616586,3.12024458,87.7,87.642,10.266]
[1773538616879,6.8328309,87.699,87.642,10.266]
[1773538619785,6.97300806,87.698,87.642,10.266]
[1773538631488,6.97278552,87.694,87.642,10.266]
[1773538633886,10.26,87.695,87.642,10.266]
[1773538634093,6.97992829,87.708,87.65,3.12020898]
[1773538634790,6.98037053,87.699,87.64,3.12020898]
[1773538635590,6.96846249,87.688,87.64,3.12020898]
[1773538639294,6.96846249,87.688,87.63,3.12020898]
[1773538639490,7.04327903,87.67,87.616,10.269]
[1773538640892,7.04227427,87.659,87.6,3.12020898]
[1773538642487,10.264,87.656,87.601,10.271]
[1773538642688,7.05034919,87.655,87.601,10.271]
[1773538643088,7.05034919,87.655,87.6,3.12020898]
[1773538644500,7.05034919,87.655,87.609,10.27]
[1773538645494,7.05034919,87.655,87.611,10.27]
[1773538648896,7.05034919,87.655,87.61,3.12020898]
[1773538649401,7.05034919,87.655,87.601,10.271]
[1773538652905,10.265,87.654,87.601,10.271]
[1773538653207,7.04746569,87.649,87.597,35.9]
[1773538653607,7.04746569,87.649,87.592,10.272]
[1773538654606,7.04682261,87.648,87.592,10.272]
[1773538655205,7.04641951,87.629,87.59,195.44336086]
[1773538655808,7.04641951,87.627,87.59,195.44336086]
[1773538656107,7.04641951,87.627,87.574,35.9]
[1773538661210,7.04641951,87.627,87.575,10.274]
[1773538662511,7.04641951,87.627,87.583,10.273]
[1773538667719,7.04641951,87.627,87.574,35.9]
[1773538668124,7.04641951,87.627,87.578,10.273]
[1773538679531,7.04641951,87.627,87.58,3.12020898]
[1773538680539,7.04641951,87.627,87.588,10.272]
[1773538681941,7.04641951,87.627,87.59,3.12020898]
[1773538682437,7.04641951,87.627,87.588,10.272]
[1773538688535,6.83311408,87.639,87.595,10.271]
[1773538691146,6.83311408,87.639,87.601,10.271]
[1773538692047,6.83311408,87.639,87.592,10.272]
[1773538707359,6.8657722,87.636,87.574,35.9]
[1773538708555,6.86212252,87.634,87.574,46.174]
[1773538709449,6.89404071,87.629,87.574,46.174]
[1773538710354,6.89415466,87.627,87.574,46.174]
[1773538712359,6.89415466,87.627,87.58,3.12469638]
[1773538717656,3.12469638,87.62,87.564,10.275]
[1773538717862,6.8947212,87.619,87.564,10.275]
[1773538718560,6.89236983,87.614,87.564,10.275]
[1773538724166,6.89236983,87.614,87.555,191.54146887]
[1773538724167,6.90216969,87.609,87.556,10.276]
[1773538725567,3.12469638,87.61,87.556,10.276]
[1773538725568,6.90225634,87.607,87.556,10.276]
[1773538727571,6.89317675,87.605,87.556,10.276]
[1773538733473,6.89317675,87.605,87.561,10.275]
[1773538739486,6.89317675,87.605,87.56,3.12469638]
[1773538739783,6.89317675,87.605,87.555,191.54146887]
[1773538741085,6.89317675,87.605,87.558,10.276]
[1773538741585,6.89317675,87.605,87.56,3.12469638]
[1773538755692,6.89317675,87.605,87.56,3.12644861]
[1773538762093,6.89317675,87.605,87.555,191.54146887]
[1773538762297,6.89072449,87.599,87.555,191.54146887]
[1773538763601,6.89571757,87.598,87.555,191.54146887]
[1773538766200,6.89571757,87.598,87.55,3.12644861]
[1773538767397,6.89571757,87.598,87.553,10.276]
[1773538768298,6.91134471,87.595,87.55,3.12644861]
[1773538768504,6.91134471,87.595,87.54,3.12644861]
[1773538769001,6.91134471,87.593,87.541,10.278]
[1773538769201,6.91134471,87.593,87.55,3.12644861]
[1773538769397,6.91134471,87.593,87.56,3.12644861]
[1773538772803,6.87523893,87.603,87.57,3.12644861]
[1773538784415,6.87523893,87.603,87.562,10.275]
[1773538788419,6.87523893,87.603,87.569,10.274]
[1773538788622,6.7880072,87.621,87.569,10.274]
[1773538788827,6.7880072,87.621,87.57,3.12644861]
[1773538789019,6.7880072,87.621,87.55,28.37634847]
[1773538789324,6.7880072,87.621,87.56,3.12644861]
[1773538789825,6.7880072,87.621,87.568,10.275]
[1773538790424,6.74085631,87.619,87.568,10.275]
[1773538792423,6.74085631,87.619,87.57,3.12644861]
[1773538792623,6.74085631,87.619,87.58,3.12644861]
[1773538793125,6.74085631,87.619,87.552,28.37634847]
[1773538793426,6.74085631,87.619,87.57,3.12644861]
[1773538794631,6.74085631,87.619,87.572,10.274]
[1773538797332,6.74085631,87.619,87.57,3.12644861]
[1773538797333,6.74085631,87.619,87.58,13.39944861]
[1773538797627,6.7433282,87.636,87.58,3.12644861]
[1773538798634,6.7433282,87.636,87.587,10.272]
[1773538799934,6.7433282,87.636,87.579,10.273]
[1773538800130,6.7433282,87.636,87.58,3.12644861]
[1773538801535,6.94585987,87.633,87.58,3.12644861]
[1773538801738,6.94585987,87.633,87.553,35.9]
[1773538801739,6.94585987,87.644,87.6,3.12644861]
[1773538801938,6.94585987,87.668,87.61,3.12644861]
[1773538802329,6.94585987,87.668,87.62,3.12644861]
[1773538802529,6.94585987,87.668,87.611,10.27]
[1773538802736,6.85921732,87.659,87.6,3.12644861]
[1773538804228,6.85921732,87.659,87.62,3.12644861]
[1773538805239,6.91479768,87.67,87.62,3.12644861]
[1773538810537,6.99449639,87.681,87.63,3.12644861]
[1773538810841,6.99449639,87.681,87.65,3.12644861]
[1773538811041,6.99449639,87.681,87.63,3.12644861]
[1773538814542,6.99449639,87.681,87.64,3.12644861]
[1773538815744,6.99449639,87.681,87.63,3.12644861]
[1773538816243,10.262,87.68,87.63,3.12644861]
[1773538816447,6.85322901,87.679,87.63,3.12644861]
[1773538817647,6.85322901,87.679,87.63,3.12076531]
[1773538820145,6.85319094,87.677,87.63,3.12076531]
[1773538830760,6.8527512,87.699,87.65,3.12076531]
[1773538831054,6.8527512,87.699,87.593,34.23]
[1773538831256,6.86799032,87.689,87.63,3.12076531]
[1773538832153,3.12076531,87.69,87.63,3.12076531]
[1773538832154,6.86799032,87.679,87.63,3.12076531]
[1773538832360,6.86799032,87.679,87.6,3.12076531]
[1773538832361,6.8530298,87.659,87.6,3.12076531]
[1773538833561,6.85268783,87.651,87.6,3.12076531]
[1773538834558,6.85268783,87.651,87.6,13.39176531]
[1773538835960,6.84761365,87.649,87.6,3.12076531]
[1773538847271,6.83790381,87.647,87.6,3.12076531]
[1773538851774,6.83210778,87.645,87.6,3.12076531]
[1773538862178,6.77102022,87.655,87.61,3.12076531]
[1773538867675,6.76914451,87.654,87.61,3.12076531]
[1773538874191,6.77110957,87.652,87.593,10.272]
[1773538875191,6.77110957,87.652,87.6,3.12076531]
[1773538875698,6.77541116,87.649,87.6,3.12076531]
[1773538876493,10.265,87.647,87.6,3.12076531]
[1773538876695,6.77835124,87.646,87.6,3.12076531]
[1773538877696,6.77835124,87.646,87.6,3.12344021]
[1773538880695,6.77663536,87.643,87.6,3.12344021]
[1773538880899,6.77663536,87.629,87.57,3.12344021]
[1773538881394,6.77670747,87.612,87.57,3.12344021]
[1773538881599,6.77670747,87.612,87.56,3.12344021]
[1773538888294,6.77670747,87.612,87.57,3.12344021]
[1773538889605,6.60962699,87.606,87.57,3.12344021]
[1773538889800,6.60962699,87.606,87.56,3.12344021]
[1773538891499,6.61702568,87.604,87.56,3.12344021]
[1773538904114,16.89085236,87.616,87.57,3.12344021]
[1773538904319,6.62185236,87.615,87.57,3.12344021]
[1773538908305,6.56477966,87.613,87.57,3.12344021]
[1773538911816,6.56477966,87.613,87.56,3.12344021]
[1773538917324,6.48231212,87.609,87.554,10.276]
[1773538919630,6.4887324,87.604,87.551,35.92]
[1773538922726,6.49809916,87.594,87.551,35.92]
[1773538927327,6.49809916,87.594,87.551,46.197]
[1773538934522,6.56157012,87.591,87.551,35.92]
[1773538934722,6.56157012,87.589,87.536,28.46210103]
[1773538934923,6.56157012,87.589,87.532,192.00001868]
[1773538935831,6.56174762,87.577,87.53,3.12344021]
[1773538937235,6.56174762,87.577,87.531,10.279]
[1773538945542,6.56174762,87.577,87.53,3.12803245]
[1773538946745,6.52365416,87.575,87.522,10.28]
[1773538946947,3.12803245,87.57,87.511,10.281]
[1773538947151,6.52365416,87.559,87.5,3.12803245]
[1773538947750,6.52247295,87.557,87.502,10.282]
[1773538947951,6.52247295,87.557,87.51,3.12803245]
[1773538948151,6.52247295,87.557,87.52,3.12803245]